bitfinex-derivatives/quotes_SOLF0:USTF0_20260204
["timestamp","ask_amount","ask_price","bid_price","bid_amount"]
[1770229849578,70.01942612,91.517,91.389,9.8647]
[1770229849979,70.02189247,91.5,91.389,9.8647]
[1770229850781,69.93301383,91.497,91.402,9.8633]
[1770229851079,69.93301383,91.497,91.374,153.4773]
[1770229851278,69.93301383,91.497,91.38,153.4677]
[1770229851478,69.93301383,91.497,91.429,9.8605]
[1770229853585,69.93301383,91.497,91.417,9.8618]
[1770229853782,69.93301383,91.497,91.37,21.34683207]
[1770229853985,69.95816109,91.493,91.37,21.34683207]
[1770229854685,9.8542,91.488,91.37,21.34683207]
[1770229854881,70.18728989,91.488,91.372,153.4809]
[1770229855089,70.18728989,91.488,91.379,153.4691]
[1770229855584,70.1905532,91.559,91.4,21.34683207]
[1770229856286,70.1905532,91.528,91.4,21.34683207]
[1770229856487,70.1905532,91.528,91.409,153.4195]
[1770229856689,70.1905532,91.528,91.4,21.34683207]
[1770229856890,70.1905532,91.528,91.392,153.4479]
[1770229857085,70.1905532,91.528,91.4,21.34683207]
[1770229857389,70.17906195,91.525,91.413,153.4116]
[1770229857580,70.17906195,91.525,91.43,21.34683207]
[1770229857882,612.1299,91.641,91.443,153.3621]
[1770229857883,70.17906195,91.567,91.443,153.3621]
[1770229858188,70.17906195,91.567,91.46,21.34683207]
[1770229858684,70.17906195,91.567,91.47,153.3164]
[1770229858889,21.34683207,91.64,91.461,153.3317]
[1770229858890,21.34683207,91.64,91.49,21.34683207]
[1770229859489,153.0465,91.632,91.49,21.34683207]
[1770229859680,21.34683207,91.64,91.454,153.3434]
[1770229859681,21.34683207,91.64,91.46,21.34683207]
[1770229859886,21.34683207,91.64,91.462,153.3306]
[1770229860086,9.8419,91.602,91.475,153.3086]
[1770229860287,9.8419,91.602,91.46,21.34683207]
[1770229860487,9.8432,91.59,91.501,9.8527]
[1770229860686,153.0573,91.626,91.46,21.34683207]
[1770229860888,62.07670161,91.625,91.46,21.34683207]
[1770229861087,62.07670161,91.591,91.501,9.8527]
[1770229861384,62.07670161,91.591,91.435,13.41770604]
[1770229861385,62.07670161,91.591,91.42,21.34683207]
[1770229861585,62.0818711,91.549,91.42,153.4]
[1770229861785,62.0818711,91.549,91.406,153.4244]
[1770229861786,62.0818711,91.549,91.406,153.4236]
[1770229861984,21.34683207,91.58,91.39,21.34683207]
[1770229861985,62.0818711,91.526,91.436,9.8597]
[1770229862586,62.0818711,91.526,91.42,21.34683207]
[1770229862791,153.0558,91.627,91.438,153.3708]
[1770229862987,153.0443,91.634,91.45,21.34683207]
[1770229862988,153.0666,91.62,91.45,21.34683207]
[1770229863185,153.0833,91.61,91.45,21.34683207]
[1770229863388,153.0584,91.625,91.45,21.34683207]
[1770229863588,153.0579,91.626,91.482,9.8547]
[1770229863785,153.1063,91.597,91.42,21.34683207]
[1770229863987,153.136,91.579,91.42,21.34683207]
[1770229864182,9.8486,91.54,91.428,9.8605]
[1770229864487,153.1713,91.558,91.39,21.34683207]
[1770229864692,9.8504,91.524,91.408,9.8627]
[1770229864885,53.09294975,91.523,91.408,9.8627]
[1770229865088,53.09294975,91.523,91.353,153.513]
[1770229865387,53.10041632,91.521,91.376,153.4748]
[1770229865896,53.10041632,91.521,91.38,21.34683207]
[1770229866285,51.54312593,91.519,91.38,21.34683207]
[1770229866890,51.54312593,91.519,91.366,153.491]
[1770229866891,51.54312593,91.519,91.405,9.8631]
[1770229867086,153.1023,91.599,91.376,153.4738]
[1770229867087,51.54312593,91.599,91.43,21.34683207]
[1770229867394,51.54312593,91.599,91.423,153.3945]
[1770229867395,51.54312593,91.599,91.46,21.34683207]
[1770229867888,51.54051941,91.597,91.463,9.8568]
[1770229868388,51.50108207,91.595,91.481,9.8548]
[1770229868588,51.50108207,91.595,91.47,21.34683207]
[1770229868998,51.50108207,91.623,91.5,21.34683207]
[1770229869294,51.50108207,91.623,91.49,21.34683207]
[1770229869483,51.50108207,91.623,91.546,9.8478]
[1770229869889,51.4984357,91.66,91.546,9.8478]
[1770229870183,51.4984357,91.66,91.507,153.255]
[1770229870184,51.33307125,91.749,91.58,21.34683207]
[1770229870687,152.8264,91.764,91.58,21.34683207]
[1770229870688,51.33307125,91.734,91.58,21.34683207]
[1770229870894,51.33307125,91.731,91.58,21.34683207]
[1770229871290,51.32956873,91.728,91.593,9.8427]
[1770229871484,51.32956873,91.728,91.58,21.34683207]
[1770229871689,152.8753,91.735,91.543,153.1937]
[1770229871690,51.32956873,91.719,91.55,21.34683207]
[1770229871891,51.32956873,91.705,91.573,9.8449]
[1770229872197,51.32956873,91.705,91.55,21.34683207]
[1770229872198,51.62962119,91.696,91.52,21.34683207]
[1770229872397,21.34683207,91.7,91.523,9.8503]
[1770229872398,51.62962119,91.657,91.523,9.8503]
[1770229873097,51.62962119,91.655,91.523,9.8503]
[1770229873296,51.62962119,91.655,91.541,9.8483]
[1770229873494,51.62962119,91.655,91.532,153.2133]
[1770229873697,51.62962119,91.655,91.52,21.34683207]
[1770229874094,51.62962119,91.655,91.49,21.34683207]
[1770229874290,52.51672478,91.636,91.523,9.8503]
[1770229874699,52.51672478,91.631,91.49,21.34683207]
[1770229874901,52.51672478,91.631,91.503,9.8524]
[1770229875091,52.51672478,91.631,91.46,21.34683207]
[1770229875290,52.51968022,91.606,91.46,21.34683207]
[1770229875589,52.51968022,91.606,91.491,9.8538]
[1770229875789,52.51968022,91.604,91.46,21.34683207]
[1770229876003,52.51968022,91.604,91.472,9.8558]
[1770229876401,51.94301848,91.558,91.447,9.8584]
[1770229876703,51.94301848,91.589,91.48,21.34683207]
[1770229877000,51.94301848,91.589,91.45,21.34683207]
[1770229877196,51.94301848,91.589,91.42,21.34683207]
[1770229877398,51.94295766,91.57,91.469,9.8561]
[1770229877601,51.94295766,91.57,91.42,21.34683207]
[1770229878099,51.94295766,91.567,91.452,9.858]
[1770229878297,51.47223086,91.649,91.51,21.34683207]
[1770229878497,51.47223086,91.649,91.483,153.2939]
[1770229878498,51.47223086,91.649,91.54,21.34683207]
[1770229878698,51.47223086,91.647,91.541,9.8484]
[1770229879001,51.47223086,91.647,91.54,21.34683207]
[1770229879202,51.47223086,91.647,91.51,21.34683207]
[1770229879399,51.47223086,91.647,91.5,21.34683207]
[1770229879795,51.47223086,91.647,91.501,153.2651]
[1770229880001,51.47223086,91.647,91.53,21.34683207]
[1770229880201,51.47223086,91.647,91.569,9.8454]
[1770229880597,50.83079011,91.676,91.56,21.34683207]
[1770229881399,50.82543596,91.672,91.569,9.8454]
[1770229881602,50.82543596,91.672,91.56,21.34683207]
[1770229881803,50.82543596,91.672,91.583,9.8439]
[1770229882405,50.87583234,91.734,91.597,9.8423]
[1770229882601,50.87583234,91.729,91.57,21.34683207]
[1770229882795,152.8595,91.744,91.57,21.34683207]
[1770229882796,50.87583234,91.719,91.57,21.34683207]
[1770229883001,50.87583234,91.705,91.598,9.8423]
[1770229883297,50.87583234,91.705,91.57,21.34683207]
[1770229883501,50.87085721,91.691,91.597,9.8423]
[1770229884100,50.87085721,91.691,91.57,21.34683207]
[1770229884101,50.87085721,91.691,91.61,9.841]
[1770229884500,50.87085721,91.691,91.57,13.34848681]
[1770229884701,50.87085721,91.691,91.57,174.49633207]
[1770229885005,51.11925723,91.769,91.6,21.34683207]
[1770229885200,152.7916,91.785,91.6,21.34683207]
[1770229885201,51.11925723,91.726,91.6,21.34683207]
[1770229885400,51.11925723,91.726,91.602,153.0957]
[1770229885603,53.01359507,91.791,91.7,21.34683207]
[1770229885795,53.01359507,91.791,91.665,152.9898]
[1770229885796,152.5944,91.904,91.712,152.9123]
[1770229885995,1.8964526,91.871,91.74,21.34683207]
[1770229886198,51.1155858,91.87,91.762,9.8246]
[1770229886398,51.1155858,91.87,91.74,21.34683207]
[1770229886797,1.8952958,91.912,91.74,21.34683207]
[1770229886798,51.115744,91.865,91.744,9.8265]
[1770229887212,9.8167,91.837,91.712,9.8301]
[1770229887396,51.11217254,91.836,91.712,9.8301]
[1770229887598,51.11217254,91.829,91.637,153.0379]
[1770229887900,21.34683207,91.83,91.691,9.8322]
[1770229887901,51.11217254,91.818,91.691,9.8322]
[1770229888096,51.11217254,91.818,91.65,21.34683207]
[1770229888296,50.88432501,91.78,91.652,9.8364]
[1770229888500,50.88432501,91.779,91.581,459.3932]
[1770229888700,50.88432501,91.779,91.638,153.0346]
[1770229888898,50.88432501,91.779,91.666,9.8349]
[1770229889308,152.7404,91.816,91.629,153.0498]
[1770229889309,50.87991015,91.777,91.629,153.0498]
[1770229889505,50.87991015,91.777,91.64,21.34683207]
[1770229889806,50.87991015,91.775,91.646,9.8371]
[1770229890505,50.87991015,91.775,91.608,153.0858]
[1770229890699,51.82039376,91.769,91.61,21.34683207]
[1770229891208,51.8198559,91.753,91.627,9.8392]
[1770229891609,51.8198559,91.749,91.596,153.1058]
[1770229891806,51.8198559,91.749,91.64,21.34683207]
[1770229892011,51.8198559,91.819,91.64,21.34683207]
[1770229892201,9.8214,91.794,91.662,9.8354]
[1770229892403,50.8019114,91.793,91.674,152.9746]
[1770229892606,50.8019114,91.821,91.704,152.9246]
[1770229892803,50.8019114,91.821,91.7,21.34683207]
[1770229893004,50.8019114,91.821,91.721,9.8291]
[1770229893205,50.8019114,91.821,91.69,21.34683207]
[1770229893406,50.79744384,91.817,91.703,9.831]
[1770229893602,50.79744384,91.817,91.69,21.34683207]
[1770229893809,50.79744384,91.817,91.7,152.9322]
[1770229894005,50.79744384,91.865,91.727,152.887]
[1770229894313,50.79744384,91.865,91.75,21.34683207]
[1770229894811,51.23176464,91.856,91.69,21.34683207]
[1770229895010,51.23176464,91.838,91.69,21.34683207]
[1770229895201,51.23176464,91.809,91.69,21.34683207]
[1770229895604,51.22904749,91.807,91.707,9.8306]
[1770229896318,51.36979604,91.805,91.721,9.829]
[1770229896611,51.36979604,91.805,91.69,21.34683207]
[1770229896911,51.36979604,91.832,91.691,152.9465]
[1770229897114,51.36979604,91.832,91.69,21.34683207]
[1770229897314,9.821,91.798,91.703,9.831]
[1770229897714,61.18866363,91.798,91.703,9.831]
[1770229897911,51.36766363,91.798,91.703,9.831]
[1770229898209,51.36766363,91.798,91.717,9.8295]
[1770229898415,51.36766363,91.798,91.661,152.997]
[1770229898617,51.36766363,91.798,91.716,9.8296]
[1770229898911,48.60224337,91.859,91.705,152.9239]
[1770229899112,48.60224337,91.859,91.69,21.34683207]
[1770229899306,48.59039083,91.816,91.69,21.34683207]
[1770229899507,48.59039083,91.816,91.671,152.9806]
[1770229899809,48.59039083,91.816,91.698,152.9357]
[1770229900014,48.59039083,91.816,91.723,9.8288]
[1770229900210,48.59039083,91.816,91.69,21.34683207]
[1770229900411,48.01772689,91.812,91.671,152.9808]
[1770229900715,48.01772689,91.812,91.702,9.831]
[1770229901105,48.01772689,91.812,91.715,9.8297]
[1770229901607,48.00422082,91.81,91.715,9.8297]
[1770229902014,48.00422082,91.846,91.7,31.93002593]
[1770229902615,31.93002593,91.86,91.721,9.829]
[1770229902616,46.83933879,91.818,91.721,9.829]
[1770229902815,46.83933879,91.818,91.67,31.93002593]
[1770229903018,46.83933879,91.818,91.646,153.0224]
[1770229903214,46.82230744,91.782,91.696,9.8318]
[1770229903411,46.82230744,91.782,91.623,172.7401]
[1770229903412,46.82230744,91.865,91.667,152.9871]
[1770229903712,46.82230744,91.828,91.749,9.826]
[1770229903909,152.5947,91.904,91.72,31.93002593]
[1770229903910,152.5577,91.926,91.745,17.60949115]
[1770229904114,9.8147,91.856,91.77,9.8238]
[1770229904310,152.5869,91.908,91.77,9.8238]
[1770229904510,152.5998,91.901,91.77,9.8238]
[1770229904708,9.815,91.853,91.755,9.8254]
[1770229904906,152.6039,91.898,91.755,9.8254]
[1770229904907,31.93002593,91.88,91.755,9.8254]
[1770229905115,31.93002593,91.88,91.745,17.60949115]
[1770229905314,9.8146,91.857,91.764,9.8245]
[1770229905509,152.563,91.923,91.745,17.60949115]
[1770229905713,152.563,91.923,91.729,152.8835]
[1770229905714,31.93002593,91.92,91.751,18.60456647]
[1770229906017,41.03235971,91.911,91.751,18.60456647]
[1770229906216,41.03235971,91.911,91.75,31.93002593]
[1770229906217,41.03235971,91.89,91.791,29.81075507]
[1770229906610,41.03235971,91.89,91.791,19.98915507]
[1770229907012,41.03235971,91.89,91.762,19.98915507]
[1770229907311,41.03235971,91.888,91.762,19.98915507]
[1770229907813,50.84685971,91.858,91.762,19.98915507]
[1770229908116,41.03235971,91.858,91.735,20.31820651]
[1770229908311,41.03235971,91.858,91.776,9.8232]
[1770229908711,41.03235971,91.855,91.767,9.8241]
[1770229909213,41.03235971,91.852,91.739,20.90168591]
[1770229909819,41.03235971,91.827,91.739,20.90168591]
[1770229910518,41.03235971,91.869,91.739,20.90168591]
[1770229910718,41.03235971,91.92,91.761,21.03848244]
[1770229910919,41.03235971,91.92,91.804,21.03848244]
[1770229911419,41.03235971,91.884,91.793,9.8213]
[1770229911619,41.03235971,91.884,91.761,21.37130295]
[1770229911921,9.8133,91.869,91.792,9.8214]
[1770229912215,152.5463,91.933,91.76,31.93002593]
[1770229912216,41.03235971,91.94,91.766,21.54374249]
[1770229912417,41.03235971,91.94,91.791,21.54374249]
[1770229912611,50.84085971,91.914,91.822,9.8182]
[1770229912816,41.03235971,91.914,91.822,9.8182]
[1770229913422,41.03235971,91.914,91.816,21.54374249]
[1770229913423,41.03235971,91.914,91.834,9.817]
[1770229914019,9.8062,91.935,91.843,9.8159]
[1770229914223,9.8062,91.935,91.835,22.16745801]
[1770229914224,45.26879819,91.94,91.835,22.16745801]
[1770229914418,9.8059,91.938,91.835,22.16745801]
[1770229914614,45.26879819,91.94,91.826,9.8178]
[1770229914813,45.26879819,91.94,91.809,22.63292412]
[1770229915021,45.26879819,91.94,91.686,13.24864457]
[1770229915022,45.26879819,91.874,91.782,22.63292412]
[1770229915212,45.26879819,91.874,91.756,22.63292412]
[1770229916012,45.26879819,91.872,91.782,9.8225]
[1770229916213,45.26879819,91.872,91.756,22.63292412]
[1770229916521,45.26879819,91.856,91.768,9.824]
[1770229916824,45.26879819,91.856,91.756,22.63292412]
[1770229917314,45.26879819,91.851,91.771,9.8237]
[1770229917719,45.26879819,91.851,91.756,22.63292412]
[1770229918114,45.26879819,91.896,91.808,9.8197]
[1770229918316,45.26879819,91.896,91.785,22.92471363]
[1770229918514,45.26879819,91.896,91.769,152.8177]
[1770229918515,45.26879819,91.896,91.837,9.8167]
[1770229918723,45.26879819,91.896,91.813,23.57515707]
[1770229919121,44.93620233,91.969,91.838,23.93722835]
[1770229919516,9.8046,91.95,91.875,9.8126]
[1770229919832,44.93620233,91.949,91.838,23.93722835]
[1770229920321,44.93620233,91.94,91.838,23.93722835]
[1770229920719,44.93620233,91.94,91.847,9.8155]
[1770229920929,44.93620233,91.94,91.838,23.93722835]
[1770229921223,44.93620233,91.94,91.809,152.7505]
[1770229921224,44.93620233,91.94,91.809,24.79656054]
[1770229921416,44.93620233,91.9,91.809,24.79656054]
[1770229921620,44.93620233,91.927,91.809,24.79656054]
[1770229921822,44.93620233,91.927,91.836,9.8168]
[1770229922423,54.74640233,91.898,91.809,24.79656054]
[1770229922623,44.93620233,91.898,91.809,24.79656054]
[1770229922928,44.93620233,91.898,91.825,9.8179]
[1770229923126,44.93620233,91.898,91.809,24.79656054]
[1770229923426,9.8063,91.935,91.849,9.8154]
[1770229923724,44.93620233,92.009,91.861,25.20158889]
[1770229923922,44.93620233,91.989,91.861,25.20158889]
[1770229924125,44.93620233,91.958,91.835,25.20158889]
[1770229924323,44.93620233,91.958,91.801,24.81246328]
[1770229924623,152.4934,91.965,91.801,24.81246328]
[1770229924624,44.93620233,91.915,91.801,24.81246328]
[1770229924824,44.93620233,91.915,91.768,24.81246328]
[1770229925028,44.93620233,91.915,91.801,24.81246328]
[1770229925627,44.93620233,91.894,91.801,24.81246328]
[1770229925833,31.93002593,91.89,91.721,25.08632962]
[1770229926027,44.93620233,91.858,91.742,9.8268]
[1770229926222,44.93620233,91.858,91.707,152.9205]
[1770229926223,44.93620233,91.858,91.743,25.08632962]
[1770229926630,44.93620233,91.858,91.749,34.49636682]
[1770229926927,44.93620233,91.858,91.75,24.67036682]
[1770229927441,44.93620233,91.858,91.701,24.936311]
[1770229927632,152.6454,91.873,91.701,24.936311]
[1770229927633,44.93620233,91.839,91.701,24.936311]
[1770229927925,44.93620233,91.818,91.703,24.936311]
[1770229928329,44.93620233,91.818,91.64,153.0319]
[1770229928330,44.93620233,91.801,91.673,23.03984117]
[1770229928527,44.93620233,91.855,91.69,31.93002593]
[1770229928828,44.93620233,91.821,91.691,23.03984117]
[1770229929232,44.93620233,91.821,91.67,31.93002593]
[1770229929233,44.93620233,91.776,91.643,23.29461327]
[1770229929534,44.93620233,91.771,91.643,23.29461327]
[1770229929730,9.824,91.769,91.643,23.29461327]
[1770229929934,44.93620233,91.766,91.643,23.29461327]
[1770229930131,44.93620233,91.766,91.554,153.1758]
[1770229930132,44.93620233,91.756,91.611,23.29461327]
[1770229930335,44.93620233,91.721,91.611,23.29461327]
[1770229930831,44.93620233,91.717,91.611,23.29461327]
[1770229931228,44.93620233,91.717,91.585,27.20647429]
[1770229931429,44.93620233,91.709,91.587,27.4638313]
[1770229931832,44.93620233,91.688,91.563,27.4638313]
[1770229932435,44.93620233,91.721,91.604,27.54785405]
[1770229932935,44.93620233,91.702,91.604,27.54785405]
[1770229933335,9.95576679,91.776,91.604,27.54785405]
[1770229933336,44.93620233,91.759,91.604,27.54785405]
[1770229933538,44.93620233,91.759,91.626,27.79895248]
[1770229934135,44.93620233,91.757,91.641,27.79895248]
[1770229934440,44.93620233,91.75,91.603,28.11668339]
[1770229935141,44.93620233,91.721,91.604,9.8406]
[1770229935340,44.93620233,91.721,91.605,28.36219777]
[1770229936431,44.93620233,91.747,91.617,27.72042357]
[1770229937038,44.93620233,91.713,91.617,37.55962357]
[1770229937241,44.93620233,91.713,91.617,27.72042357]
[1770229938136,152.8145,91.762,91.545,153.1747]
[1770229938137,44.93620233,91.711,91.604,9.8406]
[1770229938538,44.93620233,91.711,91.59,27.95846056]
[1770229938740,44.93620233,91.691,91.59,27.95846056]
[1770229939343,44.93620233,91.689,91.562,31.91684091]
[1770229939744,44.93620233,91.666,91.565,9.8448]
[1770229939943,44.93620233,91.666,91.566,31.91684091]
[1770229940742,44.93620233,91.7,91.611,9.8399]
[1770229941041,44.93620233,91.7,91.566,31.91684091]
[1770229941244,44.93620233,91.659,91.539,32.30499282]
[1770229941938,44.93620233,91.659,91.57,9.8452]
[1770229942141,44.93620233,91.659,91.566,32.30499282]
[1770229942536,9.8331,91.684,91.584,32.50176129]
[1770229942740,44.93620233,91.686,91.584,32.50176129]
[1770229942936,44.93620233,91.686,91.557,32.50176129]
[1770229943146,44.93620233,91.67,91.557,32.50176129]
[1770229943344,44.93620233,91.709,91.561,32.73046984]
[1770229943740,152.8367,91.758,91.595,32.73046984]
[1770229943741,44.93620233,91.7,91.595,32.73046984]
[1770229943940,44.93620233,91.7,91.561,33.13988932]
[1770229944144,47.82271769,91.677,91.576,9.8446]
[1770229945043,47.82271769,91.677,91.577,33.36019131]
[1770229945447,47.82271769,91.677,91.598,9.8423]
[1770229945943,9.8342,91.674,91.579,9.8443]
[1770229946242,57.65691769,91.674,91.579,9.8443]
[1770229947344,47.82271769,91.657,91.563,9.846]
[1770229947946,47.82271769,91.655,91.576,9.8446]
[1770229948152,47.82271769,91.655,91.551,32.8819928]
[1770229949244,47.82271769,91.637,91.548,9.8476]
[1770229950147,47.82271769,91.634,91.524,33.15824121]
[1770229950946,47.82271769,91.634,91.546,33.2886243]
[1770229951142,47.82271769,91.634,91.511,33.49271094]
[1770229951547,47.82271769,91.603,91.518,9.8508]
[1770229951748,47.82271769,91.603,91.511,33.49271094]
[1770229951949,47.82271769,91.639,91.511,33.49271094]
[1770229952252,152.9242,91.706,91.555,9.8468]
[1770229952253,47.82271769,91.636,91.555,9.8468]
[1770229952452,47.82271769,91.636,91.511,33.49271094]
[1770229952848,47.82271769,91.608,91.524,9.8502]
[1770229953148,47.82271769,91.608,91.511,33.49271094]
[1770229953851,47.82271769,91.608,91.461,33.81750036]
[1770229954153,47.82271769,91.581,91.498,9.8529]
[1770229954947,47.82271769,91.576,91.461,33.81750036]
[1770229955948,47.82271769,91.561,91.482,9.8547]
[1770229956655,47.82271769,91.557,91.461,33.81750036]
[1770229957054,9.8489,91.537,91.461,33.81750036]
[1770229957254,9.8489,91.537,91.462,9.8569]
[1770229957651,9.8497,91.53,91.461,33.81750036]
[1770229957856,47.82271769,91.53,91.436,33.84575986]
[1770229958353,47.82271769,91.51,91.397,34.27177249]
[1770229958753,47.82271769,91.468,91.371,34.27177249]
[1770229958954,47.82271769,91.468,91.382,34.27177249]
[1770229959453,47.82271769,91.468,91.399,9.8636]
[1770229959849,47.82271769,91.468,91.382,34.27177249]
[1770229960053,9.8566,91.465,91.382,34.27177249]
[1770229960356,47.82271769,91.468,91.382,34.27177249]
[1770229960553,47.82271769,91.497,91.396,34.56687928]
[1770229961049,47.82271769,91.489,91.396,34.56687928]
[1770229961855,47.82271769,91.489,91.398,9.8638]
[1770229962055,47.82271769,91.489,91.396,34.56687928]
[1770229962555,57.67811769,91.476,91.396,44.43087928]
[1770229962758,47.82271769,91.476,91.371,35.02261003]
[1770229962956,47.82271769,91.476,91.384,9.8653]
[1770229963158,47.82271769,91.476,91.385,35.02261003]
[1770229964254,47.82271769,91.476,91.341,35.14750863]
[1770229964459,57.68191769,91.441,91.359,9.8679]
[1770229964759,47.82271769,91.441,91.359,9.8679]
[1770229964950,47.82271769,91.441,91.341,35.14750863]
[1770229965555,9.862,91.415,91.343,9.8697]
[1770229965749,57.68471769,91.415,91.343,9.8697]
[1770229965954,57.68471769,91.415,91.316,35.31997676]
[1770229966149,47.82271769,91.403,91.316,35.31997676]
[1770229966654,47.82271769,91.403,91.343,9.8697]
[1770229966860,47.82271769,91.403,91.316,35.31997676]
[1770229967256,47.82271769,91.428,91.318,35.46145168]
[1770229967457,47.82271769,91.428,91.351,9.8689]
[1770229967660,47.82271769,91.428,91.321,35.46145168]
[1770229968354,47.82271769,91.489,91.341,33.8149607]
[1770229968958,47.82271769,91.452,91.341,33.8149607]
[1770229969354,47.82271769,91.45,91.374,9.8664]
[1770229969754,47.82271769,91.45,91.341,33.8149607]
[1770229970155,47.82271769,91.428,91.318,34.10550565]
[1770229970663,47.82271769,91.416,91.34,9.87]
[1770229970969,47.82271769,91.416,91.318,34.10550565]
[1770229971256,9.8638,91.399,91.324,9.8718]
[1770229971458,57.68651769,91.399,91.324,9.8718]
[1770229971655,47.82271769,91.399,91.318,34.10550565]
[1770229971849,47.82271769,91.449,91.318,34.10550565]
[1770229972051,47.82271769,91.449,91.321,34.26370171]
[1770229972458,47.82271769,91.449,91.35,7.47008753]
[1770229973158,47.82271769,91.446,91.351,34.13686362]
[1770229973564,47.82271769,91.476,91.39,7.47008753]
[1770229974459,19.6995,91.529,91.371,34.29107949]
[1770229974460,49.49142197,91.474,91.371,34.29107949]
[1770229974764,49.49142197,91.474,91.401,9.8634]
[1770229975163,49.49142197,91.474,91.371,34.29107949]
[1770229975360,20.00289191,91.53,91.376,34.66131005]
[1770229975558,49.49142197,91.529,91.38,20.00289191]
[1770229975758,49.49142197,91.529,91.381,34.66131005]
[1770229976053,49.49142197,91.495,91.415,9.862]
[1770229976254,49.49142197,91.495,91.385,34.75077517]
[1770229976653,20.00289191,91.54,91.385,34.75077517]
[1770229976654,49.49142197,91.492,91.385,34.75077517]
[1770229977068,49.49142197,91.492,91.43,9.8604]
[1770229977861,49.49142197,91.492,91.441,9.8592]
[1770229978266,49.49142197,91.492,91.409,34.89616583]
[1770229979463,52.79769452,91.518,91.409,34.89616583]
[1770229979665,52.79769452,91.518,91.411,33.02956654]
[1770229979854,52.79769452,91.518,91.453,9.8578]
[1770229980057,9.8511,91.517,91.453,9.8578]
[1770229980255,62.64879452,91.517,91.453,9.8578]
[1770229980461,52.79769452,91.517,91.411,33.02956654]
[1770229980760,52.79769452,91.507,91.381,32.73671708]
[1770229980962,52.79769452,91.507,91.417,9.8617]
[1770229981161,52.79769452,91.507,91.381,32.73671708]
[1770229981359,52.79769452,91.483,91.381,32.73671708]
[1770229982168,52.79769452,91.469,91.381,32.73671708]
[1770229982363,52.79769452,91.469,91.355,34.24098963]
[1770229982565,9.8586,91.447,91.375,9.8663]
[1770229982761,52.79769452,91.446,91.306,34.24098963]
[1770229983062,52.79769452,91.446,91.228,26.45422454]
[1770229983063,52.79769452,91.472,91.364,34.24098963]
[1770229983265,52.79769452,91.472,91.418,9.8616]
[1770229983462,52.79769452,91.472,91.388,34.37342572]
[1770229984060,52.79769452,91.472,91.361,34.37342572]
[1770229984271,52.79769452,91.47,91.361,34.37342572]
[1770229984967,52.79769452,91.468,91.361,34.37342572]
[1770229985166,52.79769452,91.468,91.369,35.47093882]
[1770229985373,52.79769452,91.468,91.398,9.8638]
[1770229985564,52.79769452,91.489,91.369,35.47093882]
[1770229985969,153.2253,91.525,91.369,35.47093882]
[1770229985970,62.65469452,91.462,91.369,35.47093882]
[1770229986173,52.79769452,91.462,91.369,35.47093882]
[1770229986575,62.65459452,91.462,91.369,35.47093882]
[1770229986766,52.79769452,91.462,91.345,36.91710171]
[1770229987164,52.79769452,91.451,91.384,9.8653]
[1770229987368,153.2242,91.526,91.345,36.91710171]
[1770229987369,52.79769452,91.478,91.37,37.04583546]
[1770229987570,153.1245,91.586,91.383,37.04583546]
[1770229987775,52.79769452,91.526,91.401,37.04583546]
[1770229988275,52.79769452,91.484,91.372,37.59591244]
[1770229988971,52.79769452,91.481,91.372,37.59591244]
[1770229989273,52.79769452,91.481,91.375,37.59591244]
[1770229989573,52.79769452,91.509,91.429,9.8604]
[1770229989767,52.79769452,91.509,91.418,37.7221417]
[1770229989972,52.79769452,91.509,91.44,9.8592]
[1770229990476,52.79769452,91.564,91.451,36.78734808]
[1770229990670,52.79769452,91.564,91.496,9.8532]
[1770229990871,52.79769452,91.629,91.477,36.78734808]
[1770229991276,52.79769452,91.624,91.477,36.78734808]
[1770229991578,52.79769452,91.58,91.477,36.78734808]
[1770229991972,9.839,91.629,91.543,9.8482]
[1770229992273,20.00289191,91.66,91.529,49.88891899]
[1770229992475,8.033491,91.688,91.529,49.88891899]
[1770229992672,20.00289191,91.7,91.533,49.88891899]
[1770229992975,9.841,91.611,91.496,9.8532]
[1770229993370,20.00289191,91.64,91.482,49.88891899]
[1770229993572,20.00289191,91.66,91.506,49.88891899]
[1770229993777,20.00289191,91.66,91.511,49.88891899]
[1770229993972,52.79769452,91.653,91.511,49.88891899]
[1770229994170,52.79769452,91.614,91.512,59.74041899]
[1770229994869,52.79769452,91.614,91.527,9.8499]
[1770229995171,52.79769452,91.614,91.527,49.88891899]
[1770229995373,52.79769452,91.614,91.502,49.88891899]
[1770229995675,52.79769452,91.614,91.506,9.8522]
[1770229995877,52.79769452,91.611,91.506,9.8522]
[1770229996072,52.79769452,91.611,91.502,49.88891899]
[1770229996576,153.0008,91.66,91.502,49.88891899]
[1770229996577,52.79769452,91.609,91.502,49.88891899]
[1770229996770,52.79769452,91.609,91.455,153.3416]